[Event "MČR v rapid šachu družstev 2019"]
[Site "Teplice, Czech Republic"]
[Date "2019.09.15"]
[Round "3.13"]
[White "Jirovsky, Milos"]
[Black "Liska, Jiri"]
[Result "1-0"]
[TimeControl "15 min. + 5s"]
[WhiteElo "2477"]
[BlackElo "2213"]

1. c4 {[%clk 00:15:09]} {[%emt 00:00:01]} Nf6 {[%clk 00:15:05]} {[%emt
00:00:05]} 2. Nf3 {[%clk 00:15:12]} {[%emt 00:00:02]} g6 {[%clk 00:15:02]}
{[%emt 00:00:08]} 3. g3 {[%clk 00:15:16]} {[%emt 00:00:01]} Bg7 {[%clk
00:15:06]} 4. Bg2 {[%clk 00:15:20]} {[%emt 00:00:02]} O-O {[%clk 00:15:08]}
{[%emt 00:00:02]} 5. O-O {[%clk 00:15:23]} {[%emt 00:00:02]} c6 {[%clk
00:14:54]} {[%emt 00:00:20]} 6. d4 {[%clk 00:15:25]} {[%emt 00:00:03]} d5
{[%clk 00:14:57]} {[%emt 00:00:02]} 7. Nbd2 {[%clk 00:15:29]} {[%emt 00:00:01]}
a5 {[%clk 00:14:39]} {[%emt 00:00:23]} 8. Ne5 {[%clk 00:14:52]} {[%emt
00:00:42]} a4 {[%clk 00:13:42]} {[%emt 00:01:03]} 9. e3 {[%clk 00:14:12]}
{[%emt 00:00:45]} Bf5 {[%clk 00:12:05]} {[%emt 00:01:41]} 10. g4 {[%clk
00:13:57]} {[%emt 00:00:20]} Be6 {[%clk 00:11:54]} {[%emt 00:00:16]} 11. h3
{[%clk 00:13:51]} {[%emt 00:00:11]} Nfd7 {[%clk 00:10:47]} {[%emt 00:01:12]} 12.
cxd5 {[%clk 00:12:56]} {[%emt 00:01:00]} Bxd5 {[%clk 00:10:01]} {[%emt
00:00:52]} 13. Nef3 {[%clk 00:12:04]} {[%emt 00:00:56]} Nf6 {[%clk 00:09:26]}
{[%emt 00:00:40]} 14. Qe2 {[%clk 00:11:58]} {[%emt 00:00:12]} Ne4 {[%clk
00:09:20]} {[%emt 00:00:11]} 15. Nxe4 {[%clk 00:11:57]} {[%emt 00:00:06]} Bxe4
{[%clk 00:09:24]} {[%emt 00:00:01]} 16. Bd2 {[%clk 00:11:56]} {[%emt 00:00:05]}
Na6 {[%clk 00:08:37]} {[%emt 00:00:52]} 17. Rac1 {[%clk 00:11:29]} {[%emt
00:00:33]} Qd5 {[%clk 00:08:35]} {[%emt 00:00:07]} 18. a3 {[%clk 00:11:18]}
{[%emt 00:00:16]} Rfd8 {[%clk 00:07:05]} {[%emt 00:01:35]} 19. Rfd1 {[%clk
00:11:01]} {[%emt 00:00:22]} h5 {[%clk 00:06:48]} {[%emt 00:00:22]} 20. Ne1
{[%clk 00:10:25]} {[%emt 00:00:42]} hxg4 {[%clk 00:06:28]} {[%emt 00:00:24]} 21.
hxg4 {[%clk 00:10:20]} {[%emt 00:00:10]} Bxg2 {[%clk 00:05:43]} {[%emt
00:00:51]} 22. Nxg2 {[%clk 00:10:23]} {[%emt 00:00:01]} Qb3 {[%clk 00:05:07]}
{[%emt 00:00:41]} 23. Bc3 {[%clk 00:09:34]} {[%emt 00:00:54]} Nc7 {[%clk
00:05:07]} {[%emt 00:00:05]} 24. Nf4 {[%clk 00:09:08]} {[%emt 00:00:31]} Nd5
{[%clk 00:03:57]} {[%emt 00:01:15]} 25. Nxd5 {[%clk 00:09:10]} {[%emt
00:00:03]} Rxd5 {[%clk 00:03:29]} {[%emt 00:00:33]} 26. f4 {[%clk 00:07:24]}
{[%emt 00:01:51]} Rad8 {[%clk 00:03:19]} {[%emt 00:00:14]} 27. Bb4 {[%clk
00:07:24]} {[%emt 00:00:05]} e5 {[%clk 00:02:50]} {[%emt 00:00:34]} 28. fxe5
{[%clk 00:06:54]} {[%emt 00:00:35]} Bxe5 {[%clk 00:02:44]} {[%emt 00:00:11]} 29.
Rd3 {[%clk 00:06:46]} {[%emt 00:00:14]} Qa2 {[%clk 00:02:47]} {[%emt 00:00:02]}
30. Kg2 {[%clk 00:06:42]} {[%emt 00:00:08]} Bg7 {[%clk 00:02:26]} {[%emt
00:00:26]} 31. Rc2 {[%clk 00:06:28]} {[%emt 00:00:19]} Qb1 {[%clk 00:01:56]}
{[%emt 00:00:36]} 32. b3 {[%clk 00:06:07]} {[%emt 00:00:27]} c5 {[%clk
00:00:26]} {[%emt 00:01:34]} 33. Rb2 {[%clk 00:04:42]} {[%emt 00:01:30]} Qxb2
{[%clk 00:00:13]} {[%emt 00:00:18]} 34. Qxb2 {[%clk 00:04:46]} {[%emt
00:00:01]} cxb4 {[%clk 00:00:17]} 35. bxa4 {[%clk 00:04:36]} {[%emt 00:00:15]}
bxa3 {[%clk 00:00:21]} 36. Rxa3 {[%clk 00:04:40]} {[%emt 00:00:01]} Rg5 {[%clk
00:00:12]} {[%emt 00:00:13]} 37. Kf3 {[%clk 00:04:43]} {[%emt 00:00:02]} f5
{[%clk 00:00:15]} {[%emt 00:00:02]} 38. Qxb7 {[%clk 00:03:31]} {[%emt
00:01:17]} fxg4+ {[%clk 00:00:19]} {[%emt 00:00:01]} 39. Kg2 {[%clk 00:03:35]}
{[%emt 00:00:01]} Rf5 {[%clk 00:00:13]} {[%emt 00:00:11]} 40. Ra2 {[%clk
00:03:36]} {[%emt 00:00:03]} Re8 {[%clk 00:00:12]} {[%emt 00:00:06]} 41. Qb3+
{[%clk 00:03:36]} {[%emt 00:00:05]} Kh7 {[%clk 00:00:16]} {[%emt 00:00:01]} 42.
a5 {[%clk 00:03:39]} {[%emt 00:00:02]} Rf3 {[%clk 00:00:19]} {[%emt 00:00:02]}
43. Re2 {[%clk 00:03:36]} {[%emt 00:00:08]} Bxd4 {[%clk 00:00:22]} {[%emt
00:00:03]} 44. Qb5 {[%clk 00:03:35]} {[%emt 00:00:06]} Rexe3 {[%clk 00:00:22]}
{[%emt 00:00:04]} 45. Rxe3 {[%clk 00:03:34]} {[%emt 00:00:06]} Bxe3 {[%clk
00:00:26]} {[%emt 00:00:01]} 46. Qd7+ {[%clk 00:03:14]} {[%emt 00:00:25]} Kg8
{[%clk 00:00:17]} {[%emt 00:00:14]} 47. Qxg4 {[%clk 00:03:15]} {[%emt
00:00:04]} Rf6 {[%clk 00:00:21]} 48. a6 {[%clk 00:03:11]} {[%emt 00:00:10]} Bb6
{[%clk 00:00:21]} {[%emt 00:00:05]} 49. Qc8+ {[%clk 00:03:10]} {[%emt
00:00:05]} Kg7 {[%clk 00:00:25]} {[%emt 00:00:01]} 50. Qb7+ {[%clk 00:03:11]}
{[%emt 00:00:03]} Kh6 {[%clk 00:00:29]} {[%emt 00:00:02]} 51. a7 {[%clk
00:03:12]} {[%emt 00:00:05]} Bxa7 {[%clk 00:00:33]} {[%emt 00:00:01]} 52. Qxa7
{[%clk 00:03:16]} Rf5 {[%clk 00:00:36]} {[%emt 00:00:02]} 53. Qe7 {[%clk
00:03:18]} {[%emt 00:00:02]} Rh5 {[%clk 00:00:37]} {[%emt 00:00:04]} 54. Kg3
{[%clk 00:03:23]} {[%emt 00:00:01]} Rf5 {[%clk 00:00:40]} {[%emt 00:00:01]} 55.
Kg4 {[%clk 00:03:27]} Rh5 {[%clk 00:00:40]} {[%emt 00:00:05]} 56. Qf8+ {[%clk
00:03:28]} {[%emt 00:00:03]} Kh7 {[%clk 00:00:44]} {[%emt 00:00:01]} 57. Qf7+
{[%clk 00:03:32]} Kh6 {[%clk 00:00:48]} {[%emt 00:00:02]} 58. Qe7 {[%clk
00:03:27]} {[%emt 00:00:09]} Rf5 {[%clk 00:00:50]} {[%emt 00:00:03]} 59. Qd7
{[%clk 00:03:14]} {[%emt 00:00:17]} Rg5+ {[%clk 00:00:54]} {[%emt 00:00:02]} 60.
Kf4 {[%clk 00:03:17]} {[%emt 00:00:02]} Rf5+ {[%clk 00:00:58]} {[%emt
00:00:01]} 61. Ke4 {[%clk 00:03:22]} Rh5 {[%clk 00:00:57]} {[%emt 00:00:06]} 62.
Qd8 {[%clk 00:03:25]} {[%emt 00:00:01]} Kg7 {[%clk 00:00:59]} {[%emt 00:00:04]}
63. Kf4 {[%clk 00:03:29]} {[%emt 00:00:02]} Rf5+ {[%clk 00:01:03]} {[%emt
00:00:01]} 64. Kg4 {[%clk 00:03:33]} Kh7 {[%clk 00:01:05]} {[%emt 00:00:03]} 65.
Qe7+ {[%clk 00:03:36]} {[%emt 00:00:01]} Kh6 {[%clk 00:01:07]} {[%emt
00:00:04]} 66. Qa7 {[%clk 00:03:36]} {[%emt 00:00:04]} Rh5 {[%clk 00:01:10]}
{[%emt 00:00:02]} 67. Qe3+ {[%clk 00:03:37]} {[%emt 00:00:04]} Kg7 {[%clk
00:01:14]} {[%emt 00:00:01]} 68. Qe7+ {[%clk 00:03:41]} {[%emt 00:00:01]} Kh6
{[%clk 00:01:16]} {[%emt 00:00:02]} 69. Qf6 {[%clk 00:03:40]} {[%emt 00:00:07]}
Kh7 {[%clk 00:01:18]} {[%emt 00:00:03]} 70. Qf7+ {[%clk 00:03:36]} {[%emt
00:00:08]} Kh6 {[%clk 00:01:18]} {[%emt 00:00:06]} 71. Qg8 {[%clk 00:03:40]}
Rg5+ {[%clk 00:01:22]} {[%emt 00:00:02]} 72. Kf4 {[%clk 00:03:44]} {[%emt
00:00:01]} Rf5+ {[%clk 00:01:26]} {[%emt 00:00:01]} 73. Ke4 {[%clk 00:03:49]}
Rf6 {[%clk 00:00:26]} {[%emt 00:01:05]} 74. Qh8+ {[%clk 00:03:50]} {[%emt
00:00:04]} Kg5 {[%clk 00:00:30]} 75. Qd8 {[%clk 00:03:53]} {[%emt 00:00:02]}
1-0

[Event "MČR v rapid šachu družstev 2019"]
[Site "Teplice, Czech Republic"]
[Date "2019.09.15"]
[Round "3.14"]
[White "Vltavsky, Vladimir"]
[Black "Sokolov, Alexander"]
[Result "0-1"]
[TimeControl "15 min. + 5s"]
[WhiteElo "2146"]
[BlackElo "2384"]

1. e4 {[%clk 00:15:07]} {[%emt 00:00:02]} c5 {[%clk 00:15:09]} {[%emt
00:00:02]} 2. Nf3 {[%clk 00:15:11]} d6 {[%clk 00:15:12]} {[%emt 00:00:03]} 3.
c3 {[%clk 00:15:15]} {[%emt 00:00:01]} Nf6 {[%clk 00:15:15]} {[%emt 00:00:02]}
4. Be2 {[%clk 00:15:16]} {[%emt 00:00:04]} g6 {[%clk 00:15:13]} {[%emt
00:00:07]} 5. O-O {[%clk 00:15:18]} {[%emt 00:00:04]} Bg7 {[%clk 00:15:17]} 6.
Re1 {[%clk 00:15:21]} {[%emt 00:00:01]} O-O {[%clk 00:15:19]} {[%emt 00:00:02]}
7. Bf1 {[%clk 00:15:25]} {[%emt 00:00:01]} Nc6 {[%clk 00:15:20]} {[%emt
00:00:04]} 8. h3 {[%clk 00:15:28]} {[%emt 00:00:02]} e5 {[%clk 00:15:21]}
{[%emt 00:00:04]} 9. d4 {[%clk 00:15:07]} {[%emt 00:00:26]} exd4 {[%clk
00:15:05]} {[%emt 00:00:21]} 10. cxd4 {[%clk 00:15:10]} {[%emt 00:00:02]} Re8
{[%clk 00:15:01]} {[%emt 00:00:08]} 11. d5 {[%clk 00:14:19]} {[%emt 00:00:57]}
Nd4 {[%clk 00:14:53]} {[%emt 00:00:13]} 12. Nc3 {[%clk 00:14:01]} {[%emt
00:00:22]} Bd7 {[%clk 00:14:25]} {[%emt 00:00:32]} 13. Bf4 {[%clk 00:13:33]}
{[%emt 00:00:34]} Qb6 {[%clk 00:12:23]} {[%emt 00:02:07]} 14. Rb1 {[%clk
00:12:12]} {[%emt 00:01:25]} a6 {[%clk 00:12:25]} {[%emt 00:00:04]} 15. Bd3
{[%clk 00:10:54]} {[%emt 00:01:23]} Qc7 {[%clk 00:10:54]} {[%emt 00:01:35]} 16.
a4 {[%clk 00:10:24]} {[%emt 00:00:36]} Nxf3+ {[%clk 00:10:40]} {[%emt
00:00:19]} 17. Qxf3 {[%clk 00:10:27]} {[%emt 00:00:02]} c4 {[%clk 00:10:43]}
{[%emt 00:00:02]} 18. Bc2 {[%clk 00:09:56]} {[%emt 00:00:36]} b5 {[%clk
00:10:46]} {[%emt 00:00:02]} 19. axb5 {[%clk 00:08:48]} {[%emt 00:01:13]} axb5
{[%clk 00:10:49]} {[%emt 00:00:02]} 20. Qg3 {[%clk 00:07:53]} {[%emt 00:01:00]}
Bf8 {[%clk 00:06:42]} {[%emt 00:04:12]} 21. Qh4 {[%clk 00:07:01]} {[%emt
00:00:57]} Nh5 {[%clk 00:06:38]} {[%emt 00:00:09]} 22. Ne2 {[%clk 00:04:09]}
{[%emt 00:02:57]} h6 {[%clk 00:05:46]} {[%emt 00:00:57]} 23. Bxh6 {[%clk
00:03:35]} {[%emt 00:00:39]} Bxh6 {[%emt 00:00:07]} 24. g4 Bf4 {[%clk
00:05:06]} {[%emt 00:00:43]} 25. Kg2 {[%clk 00:01:54]} {[%emt 00:01:51]} Re5
{[%clk 00:04:25]} {[%emt 00:00:45]} 26. Kf3 {[%clk 00:01:42]} {[%emt 00:00:18]}
Bg5 {[%clk 00:04:25]} {[%emt 00:00:05]} 27. Ng1 {[%emt 00:00:09]} 0-1

[Event "MČR v rapid šachu družstev 2019"]
[Site "Teplice, Czech Republic"]
[Date "2019.09.15"]
[Round "3.15"]
[White "Dolezal, Radoslav"]
[Black "Marsalek, Zdenek"]
[Result "0-1"]
[TimeControl "15 min. + 5s"]
[WhiteElo "2363"]
[BlackElo "2278"]

1. d4 {[%emt 00:19:27]} d5 {[%emt 00:00:01]} 2. Nf3 {[%emt 00:00:01]} Nf6 3. c4
{[%emt 00:00:02]} c6 4. e3 {[%emt 00:00:02]} e6 {[%emt 00:00:02]} 5. Nc3 {[%emt
00:00:03]} Nbd7 {[%emt 00:00:28]} 6. Qc2 {[%emt 00:00:20]} Bd6 {[%emt
00:00:10]} 7. e4 dxe4 {[%emt 00:00:36]} 8. Nxe4 {[%emt 00:00:01]} Nxe4 {[%emt
00:00:18]} 9. Qxe4 {[%emt 00:00:01]} Nf6 {[%emt 00:00:09]} 10. Qh4 {[%emt
00:00:33]} c5 {[%emt 00:00:09]} 11. Bd3 {[%emt 00:00:56]} cxd4 {[%emt
00:00:31]} 12. O-O {[%emt 00:01:11]} b6 {[%emt 00:00:24]} 13. Rd1 {[%emt
00:00:58]} Bb7 {[%emt 00:01:37]} 14. Nxd4 {[%emt 00:00:03]} a6 {[%emt
00:00:06]} 15. Bg5 {[%emt 00:02:24]} Qc7 {[%emt 00:02:21]} 16. Rac1 {[%emt
00:02:45]} Be5 {[%emt 00:01:20]} 17. Bf1 {[%emt 00:00:02]} Ne4 {[%emt
00:00:26]} 18. Be3 {[%emt 00:00:32]} Rd8 {[%emt 00:00:54]} 19. f3 {[%emt
00:01:26]} Bf6 {[%emt 00:01:17]} 20. Qe1 {[%emt 00:00:27]} Nc5 {[%emt
00:00:35]} 21. b4 {[%emt 00:01:02]} Nd7 {[%emt 00:00:02]} 22. c5 {[%emt
00:00:23]} bxc5 {[%emt 00:00:13]} 23. bxc5 {[%emt 00:00:01]} Nb8 {[%emt
00:00:40]} 24. c6 {[%emt 00:00:11]} Bc8 {[%emt 00:00:07]} 25. Nb3 {[%emt
00:02:25]} Rxd1 {[%emt 00:00:14]} 26. Qxd1 {[%emt 00:00:01]} O-O {[%emt
00:00:03]} 27. Qd2 {[%emt 00:00:24]} Nxc6 {[%emt 00:00:12]} 28. Qc2 {[%emt
00:00:14]} Bb7 {[%emt 00:00:05]} 29. Nc5 {[%emt 00:00:08]} Ba8 {[%emt
00:00:45]} 30. Nxa6 {[%emt 00:00:14]} Qa5 {[%emt 00:00:31]} 31. Qd2 {[%emt
00:00:08]} 0-1

[Event "MČR v rapid šachu družstev 2019"]
[Site "Teplice, Czech Republic"]
[Date "2019.09.15"]
[Round "3.16"]
[White "Duran, Tomas"]
[Black "Postupa, Pavel"]
[Result "0-1"]
[TimeControl "15 min. + 5s"]
[WhiteElo "2135"]
[BlackElo "2203"]

1. e4 {[%clk 00:15:07]} {[%emt 00:00:03]} c5 {[%clk 00:15:09]} {[%emt
00:00:01]} 2. Nf3 {[%clk 00:15:08]} {[%emt 00:00:04]} d6 {[%clk 00:15:13]} 3.
c3 {[%clk 00:15:08]} {[%emt 00:00:05]} Nf6 {[%clk 00:15:04]} {[%emt 00:00:14]}
4. Be2 {[%clk 00:15:03]} {[%emt 00:00:10]} Bg4 {[%clk 00:14:39]} {[%emt
00:00:30]} 5. h3 {[%clk 00:14:29]} {[%emt 00:00:40]} Bxf3 {[%clk 00:14:40]}
{[%emt 00:00:03]} 6. Bxf3 {[%clk 00:14:33]} {[%emt 00:00:01]} Nc6 {[%clk
00:14:40]} {[%emt 00:00:05]} 7. d3 {[%clk 00:13:19]} {[%emt 00:01:19]} g6
{[%clk 00:14:43]} {[%emt 00:00:02]} 8. O-O {[%clk 00:13:15]} {[%emt 00:00:09]}
Bg7 {[%clk 00:14:47]} 9. g3 {[%clk 00:13:05]} {[%emt 00:00:17]} O-O {[%clk
00:14:50]} {[%emt 00:00:02]} 10. Be3 {[%clk 00:13:04]} {[%emt 00:00:06]} Rc8
{[%clk 00:13:45]} {[%emt 00:01:09]} 11. Bg2 {[%clk 00:12:48]} {[%emt 00:00:22]}
b5 {[%clk 00:13:19]} {[%emt 00:00:31]} 12. a3 {[%clk 00:12:35]} {[%emt
00:00:19]} a5 {[%clk 00:12:15]} {[%emt 00:01:08]} 13. Nd2 {[%clk 00:12:34]}
{[%emt 00:00:06]} Nd7 {[%clk 00:11:47]} {[%emt 00:00:33]} 14. Qe2 {[%clk
00:11:44]} {[%emt 00:00:56]} b4 {[%clk 00:11:27]} {[%emt 00:00:24]} 15. axb4
{[%clk 00:11:33]} {[%emt 00:00:17]} axb4 {[%clk 00:11:30]} {[%emt 00:00:02]} 16.
Rfc1 {[%clk 00:10:26]} {[%emt 00:01:12]} Qb6 {[%clk 00:11:25]} {[%emt
00:00:09]} 17. Nc4 {[%clk 00:10:22]} {[%emt 00:00:10]} Qb5 {[%clk 00:11:09]}
{[%emt 00:00:20]} 18. Bf1 {[%clk 00:09:41]} {[%emt 00:00:47]} Ra8 {[%clk
00:10:52]} {[%emt 00:00:22]} 19. Qe1 {[%clk 00:09:24]} {[%emt 00:00:23]} Qb7
{[%clk 00:09:45]} {[%emt 00:01:12]} 20. Bg2 {[%clk 00:08:48]} {[%emt 00:00:42]}
Qb5 {[%clk 00:09:33]} {[%emt 00:00:17]} 21. Bf1 {[%clk 00:08:50]} {[%emt
00:00:03]} Nde5 {[%clk 00:03:29]} {[%emt 00:06:09]} 22. Nxe5 {[%clk 00:04:09]}
{[%emt 00:04:46]} Nxe5 {[%clk 00:03:33]} 23. Qd1 {[%clk 00:04:10]} {[%emt
00:00:04]} Qb7 {[%clk 00:01:54]} {[%emt 00:01:43]} 24. f4 {[%clk 00:03:54]}
{[%emt 00:00:21]} Nc6 {[%clk 00:01:54]} {[%emt 00:00:05]} 25. Bg2 {[%clk
00:03:54]} {[%emt 00:00:05]} Qb6 {[%clk 00:00:49]} {[%emt 00:01:10]} 26. Qd2
{[%clk 00:03:44]} {[%emt 00:00:16]} Ra5 {[%clk 00:00:39]} {[%emt 00:00:15]} 27.
f5 {[%clk 00:02:16]} {[%emt 00:01:33]} Rfa8 {[%clk 00:00:42]} {[%emt 00:00:02]}
28. Rxa5 {[%clk 00:02:10]} {[%emt 00:00:12]} Rxa5 {[%clk 00:00:46]} 29. fxg6
{[%clk 00:01:11]} {[%emt 00:01:04]} hxg6 {[%clk 00:00:51]} 30. Bh6 {[%clk
00:01:06]} {[%emt 00:00:10]} Bh8 {[%clk 00:00:47]} {[%emt 00:00:09]} 31. Qf2
{[%clk 00:00:29]} {[%emt 00:00:42]} Ra2 {[%clk 00:00:39]} {[%emt 00:00:13]} 32.
Qe1 {[%clk 00:00:13]} {[%emt 00:00:21]} Rxb2 {[%clk 00:00:39]} {[%emt
00:00:05]} 33. cxb4 {[%clk 00:00:13]} {[%emt 00:00:05]} Nxb4 {[%emt 00:00:30]}
0-1

[Event "MČR v rapid šachu družstev 2019"]
[Site "Teplice, Czech Republic"]
[Date "2019.09.15"]
[Round "3.17"]
[White "Soural, Jan"]
[Black "Slampa, Jan"]
[Result "1/2-1/2"]
[TimeControl "15 min. + 5s"]
[WhiteElo "2121"]
[BlackElo "2166"]

1. d4 {[%clk 00:15:09]} {[%emt 00:00:01]} Nf6 {[%clk 00:15:09]} 2. c4 {[%clk
00:14:57]} {[%emt 00:00:18]} g6 {[%clk 00:15:13]} 3. Nc3 {[%clk 00:15:00]}
{[%emt 00:00:01]} Bg7 {[%clk 00:15:17]} {[%emt 00:00:01]} 4. e4 {[%clk
00:15:04]} {[%emt 00:00:02]} d6 {[%clk 00:15:21]} 5. Nf3 {[%clk 00:14:58]}
{[%emt 00:00:10]} O-O {[%clk 00:15:23]} {[%emt 00:00:03]} 6. Be2 {[%clk
00:14:50]} {[%emt 00:00:14]} e5 {[%clk 00:15:19]} {[%emt 00:00:10]} 7. d5
{[%clk 00:14:18]} {[%emt 00:00:36]} a5 {[%clk 00:15:01]} {[%emt 00:00:22]} 8.
Bg5 {[%clk 00:13:46]} {[%emt 00:00:37]} h6 {[%clk 00:14:11]} {[%emt 00:00:55]}
9. Bh4 {[%clk 00:13:48]} {[%emt 00:00:02]} Nbd7 {[%clk 00:13:57]} {[%emt
00:00:20]} 10. O-O {[%clk 00:13:22]} {[%emt 00:00:32]} Nc5 {[%clk 00:13:50]}
{[%emt 00:00:13]} 11. Nd2 {[%clk 00:12:56]} {[%emt 00:00:31]} g5 {[%clk
00:13:51]} {[%emt 00:00:03]} 12. Bg3 {[%clk 00:12:58]} {[%emt 00:00:03]} Nh7
{[%clk 00:13:10]} {[%emt 00:00:46]} 13. Bg4 {[%clk 00:10:48]} {[%emt 00:02:15]}
f5 {[%clk 00:12:45]} {[%emt 00:00:29]} 14. Bxf5 {[%clk 00:10:41]} {[%emt
00:00:12]} Bxf5 {[%clk 00:12:34]} {[%emt 00:00:15]} 15. exf5 {[%clk 00:10:46]}
{[%emt 00:00:02]} Rxf5 {[%clk 00:12:30]} {[%emt 00:00:08]} 16. Nde4 {[%clk
00:10:01]} {[%emt 00:00:50]} Nxe4 {[%clk 00:12:33]} {[%emt 00:00:02]} 17. Nxe4
{[%clk 00:10:05]} Nf6 {[%clk 00:12:36]} {[%emt 00:00:04]} 18. Re1 {[%clk
00:09:51]} {[%emt 00:00:18]} b6 {[%clk 00:12:06]} {[%emt 00:00:35]} 19. Rc1
{[%clk 00:09:12]} {[%emt 00:00:44]} Qe8 {[%clk 00:11:25]} {[%emt 00:00:46]} 20.
Nxf6+ {[%clk 00:07:45]} {[%emt 00:01:32]} Rxf6 {[%clk 00:11:26]} {[%emt
00:00:05]} 21. Qg4 {[%clk 00:07:29]} {[%emt 00:00:21]} Qf7 {[%clk 00:10:50]}
{[%emt 00:00:41]} 22. b3 {[%clk 00:06:57]} {[%emt 00:00:37]} Rf8 {[%clk
00:10:11]} {[%emt 00:00:43]} 23. Re2 {[%clk 00:04:28]} {[%emt 00:02:34]} Qg6
{[%clk 00:10:11]} {[%emt 00:00:05]} 24. Qe4 {[%clk 00:03:57]} {[%emt 00:00:35]}
Rf5 {[%clk 00:10:14]} {[%emt 00:00:04]} 25. f3 {[%clk 00:03:31]} {[%emt
00:00:31]} h5 {[%clk 00:10:08]} {[%emt 00:00:11]} 26. h3 {[%clk 00:03:34]}
{[%emt 00:00:02]} Bh6 {[%clk 00:09:29]} {[%emt 00:00:44]} 27. Rce1 {[%clk
00:03:18]} {[%emt 00:00:19]} Kh7 {[%clk 00:09:32]} {[%emt 00:00:03]} 28. a3
{[%clk 00:03:20]} {[%emt 00:00:04]} g4 {[%clk 00:08:50]} {[%emt 00:00:47]} 29.
hxg4 {[%clk 00:03:16]} {[%emt 00:00:08]} hxg4 {[%clk 00:08:54]} {[%emt
00:00:02]} 30. fxg4 {[%clk 00:03:12]} {[%emt 00:00:08]} Rg5 {[%clk 00:08:52]}
{[%emt 00:00:07]} 31. Qxg6+ {[%clk 00:03:05]} {[%emt 00:00:12]} Rxg6 {[%clk
00:08:56]} {[%emt 00:00:01]} 32. Re4 {[%clk 00:02:59]} {[%emt 00:00:12]} Rfg8
{[%clk 00:08:23]} {[%emt 00:00:39]} 33. Rf1 {[%clk 00:02:59]} {[%emt 00:00:05]}
Rxg4 {[%clk 00:08:19]} {[%emt 00:00:08]} 34. Rf7+ {[%clk 00:02:08]} {[%emt
00:00:55]} R8g7 {[%clk 00:08:11]} {[%emt 00:00:14]} 35. Rxg7+ {[%clk 00:01:52]}
{[%emt 00:00:20]} Rxg7 {[%clk 00:08:14]} {[%emt 00:00:03]} 36. Kf2 {[%clk
00:01:47]} {[%emt 00:00:09]} Kg6 {[%clk 00:07:55]} {[%emt 00:00:24]} 37. Rg4+
{[%clk 00:01:32]} {[%emt 00:00:21]} Kf5 {[%clk 00:07:59]} 38. Rxg7 {[%clk
00:00:38]} {[%emt 00:00:58]} Bxg7 {[%clk 00:08:04]} 39. Bh4 {[%clk 00:00:16]}
{[%emt 00:00:28]} Bf6 {[%clk 00:07:20]} {[%emt 00:00:48]} 40. g4+ {[%clk
00:00:19]} {[%emt 00:00:02]} Kg6 {[%clk 00:07:21]} {[%emt 00:00:04]} 41. Bg3
{[%clk 00:00:19]} {[%emt 00:00:05]} Bg5 {[%clk 00:07:22]} {[%emt 00:00:04]} 42.
Kf3 {[%clk 00:00:13]} {[%emt 00:00:12]} Bc1 {[%clk 00:07:21]} {[%emt 00:00:06]}
43. a4 {[%clk 00:00:17]} {[%emt 00:00:01]} Kg5 {[%clk 00:07:20]} {[%emt
00:00:06]} 44. Be1 {[%clk 00:00:18]} {[%emt 00:00:02]} Bb2 {[%clk 00:06:53]}
{[%emt 00:00:34]} 45. Bd2+ {[%clk 00:00:16]} {[%emt 00:00:07]} Kg6 {[%clk
00:06:56]} {[%emt 00:00:02]} 46. Be1 {[%clk 00:00:09]} {[%emt 00:00:12]} Bc1
{[%clk 00:06:58]} {[%emt 00:00:03]} 47. Bh4 {[%clk 00:00:11]} {[%emt 00:00:03]}
Bg5 {[%clk 00:07:00]} {[%emt 00:00:03]} 48. Be1 {[%clk 00:00:15]} Bf4 {[%clk
00:06:55]} {[%emt 00:00:10]} 49. Bh4 {[%clk 00:00:17]} {[%emt 00:00:04]} Bg5
{[%clk 00:06:59]} {[%emt 00:00:01]} 50. Be1 {[%clk 00:00:22]} Bf4 {[%emt
00:00:48]} 51. Ke4 {[%emt 00:00:02]} Kg5 {[%emt 00:00:02]} 52. c5 {[%emt
00:00:04]} Bc1 {[%emt 00:00:02]} 53. Kf3 Bf4 {[%emt 00:00:03]} 1/2-1/2

[Event "MČR v rapid šachu družstev 2019"]
[Site "Teplice, Czech Republic"]
[Date "2019.09.15"]
[Round "3.18"]
[White "Horak, Jiri"]
[Black "Vokoun, Jan"]
[Result "0-1"]
[TimeControl "15 min. + 5s"]
[WhiteElo "2151"]
[BlackElo "2119"]

1. e4 {[%clk 00:15:07]} {[%emt 00:00:03]} e5 {[%clk 00:15:04]} {[%emt
00:00:07]} 2. Nf3 {[%clk 00:15:10]} {[%emt 00:00:02]} Nc6 {[%clk 00:15:08]} 3.
Bb5 {[%clk 00:15:11]} {[%emt 00:00:04]} g6 {[%clk 00:15:10]} {[%emt 00:00:04]}
4. O-O {[%clk 00:15:09]} {[%emt 00:00:07]} Bg7 {[%clk 00:15:13]} 5. c3 {[%clk
00:15:07]} {[%emt 00:00:08]} d6 {[%clk 00:15:17]} 6. d4 {[%clk 00:15:04]}
{[%emt 00:00:08]} Bd7 {[%clk 00:15:21]} {[%emt 00:00:02]} 7. Re1 {[%clk
00:14:52]} {[%emt 00:00:16]} Nge7 {[%clk 00:14:42]} {[%emt 00:00:44]} 8. Be3
{[%clk 00:14:23]} {[%emt 00:00:34]} O-O {[%clk 00:14:35]} {[%emt 00:00:13]} 9.
Nbd2 {[%clk 00:13:48]} {[%emt 00:00:40]} h6 {[%clk 00:14:01]} {[%emt 00:00:39]}
10. Bc4 {[%clk 00:13:39]} {[%emt 00:00:14]} Kh7 {[%clk 00:13:13]} {[%emt
00:00:52]} 11. d5 {[%clk 00:12:31]} {[%emt 00:01:13]} Nb8 {[%clk 00:12:56]}
{[%emt 00:00:22]} 12. Nf1 {[%clk 00:11:24]} {[%emt 00:01:12]} f5 {[%clk
00:10:54]} {[%emt 00:02:08]} 13. exf5 {[%clk 00:11:09]} {[%emt 00:00:19]} gxf5
{[%clk 00:10:57]} {[%emt 00:00:03]} 14. g3 {[%clk 00:09:51]} {[%emt 00:01:23]}
Ng6 {[%clk 00:10:17]} {[%emt 00:00:44]} 15. h4 {[%clk 00:08:41]} {[%emt
00:01:15]} f4 {[%clk 00:09:41]} {[%emt 00:00:41]} 16. h5 {[%clk 00:08:04]}
{[%emt 00:00:42]} fxe3 {[%clk 00:09:29]} {[%emt 00:00:18]} 17. hxg6+ {[%clk
00:07:53]} {[%emt 00:00:16]} Kh8 {[%clk 00:08:32]} {[%emt 00:01:02]} 18. Nxe3
{[%clk 00:07:43]} {[%emt 00:00:14]} Qf6 {[%clk 00:08:33]} {[%emt 00:00:05]} 19.
Nh2 {[%clk 00:04:55]} {[%emt 00:02:52]} Qxf2+ {[%clk 00:08:30]} {[%emt
00:00:07]} 20. Kh1 {[%clk 00:04:59]} {[%emt 00:00:03]} Qxg3 {[%clk 00:07:04]}
{[%emt 00:01:30]} 21. Neg4 {[%clk 00:02:54]} {[%emt 00:02:10]} Rf4 {[%clk
00:06:11]} {[%emt 00:00:59]} 22. Rg1 {[%clk 00:02:32]} {[%emt 00:00:26]} Bxg4
{[%clk 00:05:41]} {[%emt 00:00:35]} 23. Nxg4 {[%clk 00:01:15]} {[%emt
00:01:22]} Qh3+ {[%clk 00:05:24]} {[%emt 00:00:22]} 24. Nh2 {[%clk 00:01:17]}
{[%emt 00:00:03]} Rf2 {[%clk 00:04:52]} {[%emt 00:00:38]} 0-1